Cogmind - Beta 15 @@@ ROGUE MODE // 2025.08.06 @ 16:18:34 Player: TapeIsSticky Result: Self-destructed Performance ------------- Evolutions (2) 1000 Regions Visited (3) 600 Robots Destroyed (34) 170 Value Destroyed (728) 728 Prototype IDs (11) 220 Alien Tech Used (0) 0 Bonus (0) 0 TOTAL SCORE: 2718 Bonus ------- None Cogmind --------- Core Integrity 537/550 Matter 257/300 Energy 170/170 System Corruption 0% Temperature Warm (199) Movement Treading (240) Ox1 Location -8/Materials Parts ------- > --- POWER (1) -------- Makeshift Power Source > --- PROPULSION (3) --- Medium Treads Cargo Legs > --- UTILITY (4+2) ---- Medium Storage Unit Seismic Detector (+) Transmission Jammer Hardened Heavy Armor Plating Makeshift Light Armor Plating (+) > --- WEAPON (3) ------- Subdweller Machine Gun Barrage Gun Improved Light Cannon > --- INVENTORY (10) --- Medium Treads Wheel Medium Matter Pod (100) Subdweller Laser Subdweller Laser Shotgun Shotgun Shotgun Subdweller Shrapnel Launcher Piercing Trap Peak State ------------ > --- POWER ------------ Makeshift Power Source > --- PROPULSION ------- Medium Treads Cargo Legs > --- UTILITY ---------- Medium Storage Unit Seismic Detector Transmission Jammer Hardened Heavy Armor Plating Makeshift Light Armor Plating > --- WEAPON ----------- Subdweller Laser Subdweller Machine Gun Barrage Gun > --- INVENTORY -------- Medium Treads Wheel Medium Matter Pod Subdweller Laser Shotgun Shotgun Shotgun Subdweller Shrapnel Launcher Piercing Trap [Rating: 50] Favorites ----------- Power Makeshift Power Source Engine Makeshift Power Source Propulsion Light Treads Treads Light Treads Leg Cargo Legs Utility Seismic Detector Device Seismic Detector Storage Medium Storage Unit Protection Makeshift Light Armor Plating Weapon Shotgun Energy Gun Subdweller Laser Energy Cannon Light EM Pulse Cannon Ballistic Gun Shotgun Ballistic Cannon Improved Light Cannon Launcher Subdweller Shrapnel Launcher Impact Weapon Maul Build | -11 -10 -10 -8 ------- Run | Yrd Mat Sub Mat Slots Evolved 4 | . . . 4 Power . | . . . . Propulsion 1 | . . . 1 Utility 2 | . . . 2 Weapon 1 | . . . 1 Parts Attached 30 | 7 9 8 6 Power 5 | 1 1 3 . Engine 5 | 1 1 3 . Core . | . . . . Reactor . | . . . . Propulsion 7 | 2 3 1 1 Treads 4 | 2 1 . 1 Leg 3 | . 2 1 . Wheel . | . . . . Hover . | . . . . Flight . | . . . . Utility 6 | 2 1 1 2 Device 2 | 1 . . 1 Storage 2 | 1 1 . . Processor . | . . . . Hackware . | . . . . Protection 2 | . . 1 1 Artifact . | . . . . Weapon 12 | 2 4 3 3 Energy Gun 1 | . . 1 . Energy Cannon 1 | . 1 . . Ballistic Gun 7 | 2 3 . 2 Ballistic Cannon 1 | . . . 1 Launcher 1 | . . 1 . Special Weapon . | . . . . Impact Weapon 1 | . . 1 . Slashing Weapon . | . . . . Piercing Weapon . | . . . . Special Melee Weapon . | . . . . Unidentified Prototypes . | . . . . Parts Lost 6 | . 5 1 . Power 2 | . 1 1 . Propulsion 2 | . 2 . . Utility . | . . . . Weapon 2 | . 2 . . Highest Loss Streak 3 | . 3 1 . To Critical Strikes . | . . . . Average Backups 7 | 2 6 8 8 Power . | . 1 . . Propulsion 1 | . 1 1 2 Utility . | . . 1 1 Weapon 4 | . 3 5 5 Tool/Special . | . . . . Unused Backups 13 | . 4 3 6 Power . | . . . . Propulsion 3 | . . 1 2 Utility 1 | . . . 1 Weapon 9 | . 4 2 3 Tool/Special . | . . . . Average Slot Usage (%) 79 | . 89 71 81 Engine 8 | . 5 11 7 Treads 10 | . 22 2 6 Leg 8 | . 4 11 7 Device 12 | . 14 11 14 Storage 11 | . 14 11 7 Protection 1 | . . . 14 Energy Gun 5 | . . 8 4 Ballistic Gun 18 | . 25 13 14 Peak Build Rating 50 | 7 10 31 50 Average Rating 20 | 5 7 23 49 On Entrance 12 | . 7 10 31 Naked Turns . | . . . . Heaviest Build 51 | 13 20 28 51 Greatest Support 55 | 40 40 55 55 Greatest Overweight (x) 1 | . 1 1 1 Average Overweight (x) . | . . . . Largest Inventory Capacity 10 | 8 10 10 10 Average Capacity 9 | 7 8 10 10 Most Carried 10 | 3 8 10 10 Average Carried 7 | 2 6 8 9 Final Capacity 10 | 8 10 10 10 Final Carried 10 | 3 8 10 10 Class Distribution -------------------- 76% | Mutant 11% | Derelict-Tank 11% | Scavenger-Mutant Dominant Class ---------------- Mutant | -10/Materials Mutant | -10/Subcaves Derelict-Tank | -8/Materials Resources | -11 -10 -10 -8 ----------- Run | Yrd Mat Sub Mat Matter Collected 1248 | 305 531 317 95 Remotely . | . . . . Salvage Created 1063 | 154 668 68 173 Parts 89 | 13 58 8 10 Haulers Intercepted 2 | . 1 . 1 Recyclers Shooed 2 | . 2 . . Parts Field Recycled . | . . . . Retrieved Matter . | . . . . Parts Self-Destructed 14 | . . 14 . Prevented . | . . . . Kills | -11 -10 -10 -8 ------- Run | Yrd Mat Sub Mat Combat Hostiles Destroyed 21 | . 16 2 3 Guns 19 | . 15 2 2 Cannons 2 | . 1 . 1 Classes Destroyed 10 | 3 5 1 1 Worker 2 | 2 . . . Builder 1 | . 1 . . Tunneler 4 | 3 1 . . Hauler 2 | . 1 . 1 Recycler 2 | 1 1 . . Watcher 2 | . 2 . . Swarmer 6 | . 6 . . Grunt 12 | . 10 . 2 Sentry 1 | . . . 1 Subdweller 2 | . . 2 . Best Kill Streak 4 | 4 3 1 2 Combat Bots Only 3 | . 3 1 2 Max Kills in Single Turn 1 | 1 1 1 1 Gunslinging . | . . . . Exploded . | . . . . Melee . | . . . . Uniques/NPCs Destroyed . | . . . . Combat | -11 -10 -10 -8 -------- Run | Yrd Mat Sub Mat Hostile Shots Fired 126 | . 108 8 10 Missed 31 | . 26 2 3 Hits 95 | . 82 6 7 Projectile 95 | . 82 6 7 Critical Strikes 1 | . 1 . . Damage Taken 1111 | . 881 123 107 Core 143 | . 130 . 13 Absorbed by Shields . | . . . . Core Remaining (%) 74 | 100 . 48 . Volleys Fired 103 | 9 66 18 10 Largest 3 | 2 2 2 3 Hottest 118 | 40 76 83 118 Shots Fired 197 | 18 122 27 30 Gun 187 | 18 118 26 25 Cannon 9 | . 4 . 5 Launcher 1 | . . 1 . Special . | . . . . Kinetic 173 | 18 118 12 25 Thermal 20 | . . 15 5 Explosive . | . . . . Electromagnetic 4 | . 4 . . Robot Hit Streak 11 | 6 9 11 11 Robot Miss Streak 6 | 3 6 1 2 Penetration Max . | . . . . Secondary Targets 2 | . 2 . . Max Gunslinging Chain 1 | . 1 . . Shots Hit Robots 110 | 10 67 13 20 Core Hits 56 | 5 38 5 8 Critical Kills . | . . . . Critical Parts Destroyed 2 | . 1 . 1 Critical Strikes 3 | . 1 . 2 Destroy 3 | . 1 . 2 Melee Attacks 1 | . . 1 . Impact 1 | . . 1 . Slashing . | . . . . Piercing . | . . . . Sneak Attacks . | . . . . Combat Hostiles . | . . . . Follow-up Attacks . | . . . . Damage Inflicted 1759 | 126 981 233 419 Guns 1608 | 125 908 233 342 Cannons 136 | . 71 . 65 Explosions . | . . . . Melee . | . . . . Ramming 15 | 1 2 . 12 Kinetic 1495 | 125 908 113 349 Thermal 178 | . . 120 58 Explosive . | . . . . Electromagnetic 71 | . 71 . . Impact . | . . . . Slashing . | . . . . Piercing . | . . . . Highest Corruption 1 | . 1 1 . Average Corruption 1 | . 1 1 . Corruption Purged . | . . . . Corruption Blocked . | . . . . Effects 15 | . 1 14 . Message Errors 4 | . 1 3 . Matter Fused 6 | . . 6 . Heat Flow Errors 1 | . . 1 . Data Loss (minor) 4 | . . 4 . Overload Shots . | . . . . Overflow Damage . | . . . . Projectiles . | . . . . Explosions . | . . . . Melee . | . . . . Knockbacks 1 | . . . 1 Impact 1 | . . . 1 Kinetic . | . . . . Secondary . | . . . . Self-Inflicted Damage . | . . . . Shots . | . . . . Rammed 2 | . 1 . 1 Targets Rammed 4 | 1 2 . 1 Kicked 1 | . 1 . . Crushed 1 | 1 . . . Highest Temperature 341 | . 24 169 341 Average Temperature 138 | . 10 88 155 Received Heat Transfer 444 | . 363 36 45 Effects 2 | . . . 2 Shutdowns 1 | . . . 1 Energy Bleed 1 | . . . 1 Siege Activations . | . . . . Martial Activations . | . . . . Shielding Activations . | . . . . Robots Disrupted . | . . . . Combat Hostiles . | . . . . Robots Corrupted . | . . . . Combat Hostiles . | . . . . Parts Fried . | . . . . Impact Corruptions . | . . . . Robots Melted . | . . . . Combat Hostiles . | . . . . Parts Melted . | . . . . Heat Transferred 225 | . . 150 75 Parts Sabotaged . | . . . . Parts Stolen . | . . . . Parts Stripped . | . . . . Power Chain Reactions . | . . . . Alert | -11 -10 -10 -8 ------- Run | Yrd Mat Sub Mat Maximum Alert Level . | . . . . Low Security (%) 100 | 100 100 . 100 Level 1 . | . . . . Level 2 . | . . . . Level 3 . | . . . . Level 4 . | . . . . Level 5 . | . . . . High Security . | . . . . Max Security . | . . . . Peak Influence 88 | 15 88 . 51 Initial . | . . . . Average 25 | 2 35 . 6 Influence Increases 596 | 30 465 . 101 Destroy 0b10 Robot/C 380 | . 320 . 60 Destroy 0b10 Robot/NC 65 | 30 30 . 5 Destroy Leader 98 | . 76 . 22 Successful Hack 36 | . 23 . 13 Destroy Structure 2 | . 1 . 1 Lose Combat Pursuer 15 | . 15 . . Influence Decreases 558 | 30 426 39 63 Entered New Map 19 | . . 19 . Time Decay 489 | 30 376 20 63 Lost Part 50 | . 50 . . Squads Dispatched 4 | . 3 . 1 Investigation 1 | . 1 . . Extermination . | . . . . Reinforcement 3 | . 2 . 1 Assault . | . . . . Garrison . | . . . . Intercept . | . . . . Searches Triggered . | . . . . Construction Impeded . | . . . . Haulers Reinforced . | . . . . Active Scanning Responses . | . . . . Cargo Convoy Interrupts . | . . . . Stealth | -11 -10 -10 -8 --------- Run | Yrd Mat Sub Mat Distress Signals 6 | . 5 . 1 Communications Jammed . | . . . . Distress Signals . | . . . . Times Spotted 32 | . 26 2 4 Peak Tracking Total 5 | . 5 1 2 Tactical Retreats 1 | . 1 . . Traps | -11 -10 -10 -8 ------- Run | Yrd Mat Sub Mat Traps Triggered 3 | . 3 . . Indirectly . | . . . . Trap Hack Attempts . | . . . . Triggered . | . . . . Disarmed . | . . . . Reprogrammed . | . . . . Reused . | . . . . Traps Extracted . | . . . . Installed . | . . . . Triggered . | . . . . Most Traps Carried 1 | . . 1 1 Machines | -11 -10 -10 -8 ---------- Run | Yrd Mat Sub Mat Machines Disabled 1 | . . 1 . Max in Single Turn 1 | . . 1 . Machines Repaired . | . . . . Machines Dismantled . | . . . . Machines Sabotaged . | . . . . Overloaded Fab Kills . | . . . . Hacking | -11 -10 -10 -8 --------- Run | Yrd Mat Sub Mat Machines Accessed 10 | . 7 2 1 Terminals 8 | . 7 . 1 Fabricators . | . . . . Repair Stations . | . . . . Recycling Units . | . . . . Scanalyzers . | . . . . Garrison Access . | . . . . Total Hacks 23 | . 14 5 4 Successful 15 | . 8 5 2 Failed 8 | . 6 . 2 Catastrophic 3 | . 3 . . Database Lockouts . | . . . . Manual 19 | . 15 . 4 Terminals 18 | . 14 . 4 Fabricators . | . . . . Repair Stations . | . . . . Recycling Units . | . . . . Scanalyzers . | . . . . Garrison Access . | . . . . Terminal Hacks 6 | . . 5 1 Record 4 | . . 4 . Branch Access Points 1 | . . . 1 Proto ID Catalog 1 | . . 1 . Fabricator Hacks . | . . . . Repair Station Hacks . | . . . . Recycling Unit Hacks . | . . . . Scanalyzer . | . . . . Garrison Access Hacks . | . . . . Unauthorized Hacks 7 | . 6 . 1 Terminals 7 | . 6 . 1 Botnet 2 | . 1 . 1 Skim 5 | . 5 . . Fabricators . | . . . . Repair Stations . | . . . . Recycling Units . | . . . . Scanalyzers . | . . . . Garrison Access . | . . . . Data Cores Recovered . | . . . . Used . | . . . . Hacking Detections 4 | . 4 . . Full Trace Events . | . . . . Feedback Events . | . . . . Feedback Blocked . | . . . . Robot Schematics Acquired . | . . . . Robots Built . | . . . . Authchips . | . . . . Time . | . . . . Total Robot Build Rating . | . . . . Part Schematics Acquired . | . . . . Parts Built . | . . . . Authchips . | . . . . Time . | . . . . Total Part Build Rating . | . . . . Parts Repaired . | . . . . Time . | . . . . Parts Recycled . | . . . . Recycled Matter . | . . . . Retrieved Matter . | . . . . Retrieved Components . | . . . . Parts Scanalyzed . | . . . . Part Schematics Acquired . | . . . . Parts Damaged . | . . . . Bothacking | -11 -10 -10 -8 ------------ Run | Yrd Mat Sub Mat Used RIF Installer . | . . . . Robots Hacked . | . . . . Non-combat . | . . . . Combat . | . . . . Robot Hacks Applied . | . . . . Relay Couplers Released . | . . . . Fabnet Peak Effective % . | . . . . Robots Rewired . | . . . . Allies Hacked . | . . . . Hacks Repelled . | . . . . Allies | -11 -10 -10 -8 -------- Run | Yrd Mat Sub Mat Total Allies . | . . . . Largest Group . | . . . . Highest-Rated Group . | . . . . Highest-Rated Ally . | . . . . Total Orders . | . . . . Ally Attacks . | . . . . Total Damage . | . . . . Kills . | . . . . Allies Corrupted . | . . . . Allies Melted . | . . . . Intel | -11 -10 -10 -8 ------- Run | Yrd Mat Sub Mat Active Infowar (turns) 3125 | 27 1143 1569 386 Seismic 3125 | 27 1143 1569 386 Jamming 370 | . . . 370 Robot Analysis Total . | . . . . Derelict Logs Recovered . | . . . . Drone Launches . | . . . . Drone Recoveries . | . . . . Exploration | -11 -10 -10 -8 ------------- Run | Yrd Mat Sub Mat Turns Passed 3271 | 173 1143 1569 386 Spaces Moved 1858 | 85 544 1087 142 Core 4 | 4 . . . Treads 794 | 81 441 135 137 Legs 1060 | . 103 952 5 Wheels . | . . . . Hover . | . . . . Flight . | . . . . Fastest Speed 50 | 50 120 130 130 Average Speed 151 | 154 162 135 235 Slowest Speed 240 | 160 190 240 240 Overloaded Moves . | . . . . Propulsion Burnouts . | . . . . Robots Hopped . | . . . . Potential Cave-ins . | . . . . Cave-ins Triggered . | . . . . Exploration Rate (%) 45 | 4 96 66 14 Regions Visited 3 Branch Regions 1 Pre-discovered Areas 1 | . . 1 . Known Exits Taken . | . . . . Unknown Exits Taken 3 | 1 1 1 . Scrap Searched 6 | . . 6 . Spaces Dug . | . . . . Terrain Destroyed 12 | . . 12 . Melee . | . . . . Projectile . | . . . . AOE 12 | . . 12 . Terrain Rammed . | . . . . Walls Destroyed . | . . . . Machines Disabled . | . . . . Actions | -11 -10 -10 -8 --------- Run | Yrd Mat Sub Mat Total 2113 | 104 681 1158 170 Wait 73 | . 36 29 8 Move 1855 | 84 543 1086 142 Hop . | . . . . Pick Up 24 | 3 11 8 2 Fast Attach 16 | 7 4 2 3 Attach 4 | . 2 1 1 Detach . | . . . . Swap 17 | . 9 6 2 Drop 16 | . 8 7 1 Fire 103 | 9 66 18 10 Melee 1 | . . 1 . Ram . | . . . . Kick 1 | . 1 . . Crush 3 | 1 1 . 1 Escape Stasis . | . . . . Rewire . | . . . . Trap . | . . . . Miscellaneous . | . . . . Route ------- -11/Scrapyard -10/Materials (discovered 5 exits: [*Mat x3] / [*Min] / *Sub) -10/Subcaves (discovered 2 exits: *Mat x2) -8/Materials (discovered 1 exit: Sto) History --------- Turn | Location | Event 10 | -11/Scrapyard | Discovered new exit (range 15) 174 | -11/Scrapyard | Entered Materials 308 | -10/Materials | Build established: Mutant 598 | -10/Materials | Discovered new exit (range 3) 811 | -10/Materials | Discovered new exit (range 10) 956 | -10/Materials | Lost 3 parts (1n2w) 1011 | -10/Materials | Discovered new exit (range 16) 1114 | -10/Materials | Discovered new exit (range 5) 1122 | -10/Materials | Core integrity fell below 50% 1309 | -10/Materials | Discovered new exit (range 6) 1317 | -10/Materials | Entered Subcaves 1490 | -10/Subcaves | Build established: Scavenger-Mutant 1526 | -10/Subcaves | Visited 4L-MR0's lab 1563 | -10/Subcaves | Found Cargo Legs 1564 | -10/Subcaves | Attached Cargo Legs, gained temporary slots: Utility x2 1845 | -10/Subcaves | Learned location of Zion (-7) 1845 | -10/Subcaves | Met a Zionite searching for "candidates" 1854 | -10/Subcaves | Build established: Mutant 1944 | -10/Subcaves | Visited Clippyterm 1948 | -10/Subcaves | Learned 40 Factory zone layouts 1948 | -10/Subcaves | Learned Factory stockpile data 2489 | -10/Subcaves | Discovered new exit (range 9) 2691 | -10/Subcaves | Discovered new exit (range 14) 2698 | -10/Subcaves | Shifting Twisted Machinery released Sub. Power Source 2698 | -10/Subcaves | Shifting Twisted Machinery released Sub. Monowheel 2886 | -10/Subcaves | Entered Materials 2886 | -8/Materials | Evolved 4 slots: Propulsion x1, Utility x2, Weapon x1 2963 | -8/Materials | Identified exit to Storage 3195 | -8/Materials | Build established: Derelict-Tank 3272 | -8/Materials | Self-destructed Last Messages --------------- 03113_ K-01 Serf collects debris. 03117_ Y-45 Defender suffers critical hit (Destroy). 03123_ Y-45 Defender destroyed. 03125_ Power failure, Mak. Power Source shutdown. 03129_ K-01 Serf collects debris. 03130_ Overheating: Energy bleed (-27). 03134_ K-01 Serf collects debris. 03134_ Slammed into K-01 Serf. 03134_ K-01 Serf knocked back. 03135_ Acquired 44 matter. 03145_ K-01 Serf collects debris. 03228_ G-47 Trooper destroyed. 03238_ Acquired 40 matter. 03257_ Acquired 5 matter. 03261_ U-05 Engineer builds a Door. 03262_ Acquired 4 matter. 03266_ Acquired 2 matter. 03269_ A-02 Transporter destroyed. Map ----- +----------------------------------------------------+ | | | | | | | | | | | | | | | | | | | | | | | | | ???????????????????????###########???????????????? | | ???????????????????????# #???????????????? | | ???????????????????????#! ! ""#???????????????? | | #######????????????????# T"#???????????????? | | T #????????????????# ""#???????????????? | | = #??############### """ #???????????????? | | """ #??# + """ #???????????????? | | """ #??# ############# """ #???????????????? | | """ #??# #???????????# t #???????????????? | | #??# #???????????#####/#####???????????????? | | #+#####?## ###############% #?????????????????? | | #??# !=u = #?????????????????? | | #??# !]]== #?????????????????? | | #??# *]%]@ #?????????????????? | | ## #??# ############## #?????????????????? | | ## #??# [#????????????#######?????????????????? | | ## #??# #????????????????????????????????????? | | ## #### ########?????????????????????????????? | | ## # #?????????????????????????????? | | + + ! #?????????????????????????????? | | ## # #?????????????????????????????? | | ###+##### # #?????????????????????????????? | | # ## # #?????????????????????????????? | | # """ ## # #?????????????????????????????? | | # """ ## ###+####?????????????????????????????? | | # """ ## ?? ????????????????????????????????? | | # + ? ???????????????????????????????? | | # """ ## ??????????????????????????????? | | # """ ###+##### ??????????????????????????????? | | # """ #???????? #?????????????????????????????? | | # =#???????? #?????????????????????????????? | | ???"" #???????? #?????????????????????????????? | | ???"" #????????? ?#?????????????????????????????? | | ????" #?????????????????????????????????????????? | | ???? #?????????????????????????????????????????? | | ????####?????????????????????????????????????????? | | ?????????????????????????????????????????????????? | | ?????????????????????????????????????????????????? | +----------------------------------------------------+ Best States ------------- Heat Dissipation 31 Energy Generation 15 Energy Capacity 250 Matter Stores 300 Matter Capacity 300 Sight Range 16 Terrain Scan Density 10 Jamming Range 12 Armor Coverage 700 Evasion (%) 55 Recoil Reduction 2 Item Schematics ----------------- None Robot Schematics ------------------ None Fabricated ------------ Nothing Repaired ---------- Nothing Alien Tech Used ----------------- None Achievements -------------- None Challenges ------------ None Game ------ Seed UltimateCoilCore Manual? 0 Play Time 00:17:16 Cumulative 163.9 hours Start 2025.08.06 @ 16:03:17 End 2025.08.06 @ 16:18:34 Sessions 1 Manual Loads 0 Difficulty Rogue Special Mode None Game No. 82 Rogue 82 Adventurer 0 Explorer 0 Win Type - Total 18 Types 8/1/5/1/0/1/1/1/0/0 Lore% 64 Gallery% 59 Achievement% 69 Wizard Run 0 Options --------- Layout 1 ASCII 0 Keyboard 0 Movement Arrows Keybinds 0 Fullscreen 2 Font 24/Tamsyn Map View 50x35 Zoom Use 0% Tactical HUD 1 Map Filters NONE Filters NONE Steam 1 RUN: ab256a34-0720-4837-ae02-2730d251cecc